bitfinex/quotes_SOLUSD_20251013
["timestamp","ask_amount","ask_price","bid_price","bid_amount"]
[1760356451380,0.7,193.16,193.14,5.17732465]
[1760356451578,0.7,193.15,193.14,5.17732465]
[1760356451792,0.7,193.15,193.13,5.17784832]
[1760356451986,0.7,193.14,193.13,5.17784832]
[1760356453298,0.7,193.18,193.13,25.45796729]
[1760356453472,0.7,193.17,193.14,7.33547029]
[1760356453666,0.7,193.16,193.14,7.33547029]
[1760356453862,0.7,193.15,193.14,7.33547029]
[1760356454291,0.7,193.15,193.14,12.51306167]
[1760356454584,0.7,193.17,193.14,12.51306167]
[1760356454788,0.64699792,193.2,193.16,7.33547029]
[1760356454992,0.7,193.19,193.16,7.33547029]
[1760356455371,0.7,193.18,193.16,5.0052465]
[1760356455771,0.7,193.17,193.14,5.17759138]
[1760356455981,0.64696444,193.21,193.14,5.17759138]
[1760356455982,0.7,193.16,193.14,5.17759138]
[1760356456195,0.7,193.15,193.12,5.17787559]
[1760356456374,0.7,193.14,193.11,5.17839573]
[1760356456566,0.7,193.14,193.11,10.18364223]
[1760356456771,0.7,193.13,193.11,10.18364223]
[1760356457172,0.7,193.13,193.11,16.05487094]
[1760356457173,0.10128818,193.12,193.11,16.05487094]
[1760356457380,0.09677205,193.15,193.11,16.05487094]
[1760356457381,0.09677205,193.15,193.14,31.67647521]
[1760356457585,0.10982914,193.16,193.14,31.67647521]
[1760356457780,0.10460653,193.17,193.15,0.67]
[1760356457986,0.10460653,193.17,193.16,11.54647521]
[1760356458179,0.09959438,193.2,193.17,10.87647521]
[1760356458472,0.09959438,193.2,193.17,21.72850899]
[1760356458976,0.09959438,193.2,193.17,16.05326249]
[1760356459179,0.09959438,193.2,193.17,21.29859863]
[1760356459593,0.09959438,193.2,193.17,42.09859863]
[1760356460391,0.09959438,193.2,193.17,42.76859863]
[1760356461578,0.09959438,193.2,193.19,20.8]
[1760356461783,0.7,193.29,193.2,10.87647521]
[1760356462072,0.7,193.29,193.28,5.0052465]
[1760356462287,0.7,193.29,193.27,5.0052465]
[1760356462486,0.7,193.29,193.27,10.17910167]
[1760356462700,0.1,193.3,193.27,10.17910167]
[1760356462895,0.7,193.28,193.27,10.17910167]
[1760356463086,0.8,193.3,193.27,5.17385517]
[1760356463270,0.7,193.29,193.28,5.0052465]
[1760356463467,0.1,193.3,193.28,5.0052465]
[1760356463670,0.8,193.3,193.28,5.0052465]
[1760356463891,0.8,193.3,193.27,5.41322065]
[1760356464083,0.7,193.29,193.27,5.41322065]
[1760356464288,0.7,193.29,193.27,10.41846715]
[1760356465584,0.1,193.3,193.27,10.41846715]
[1760356465792,0.7,193.29,193.27,10.41846715]
[1760356466775,0.7,193.28,193.26,5.17436618]
[1760356466980,0.1,193.3,193.26,10.17961268]
[1760356467186,0.8,193.3,193.27,5.0052465]
[1760356467386,0.1,193.3,193.29,5.0052465]
[1760356467582,0.1,193.3,193.29,10.87647521]
[1760356467794,0.1,193.3,193.29,5.0052465]
[1760356468201,0.1,193.3,193.27,11.11578615]
[1760356468498,0.1,193.3,193.29,10.17881988]
[1760356468726,0.1,193.3,193.29,21.05529509]
[1760356469010,0.1,193.3,193.29,21.29458127]
[1760356469510,0.1,193.3,193.29,21.96458127]
[1760356469880,1e-08,193.35,193.34,10.87647521]
[1760356470078,1e-08,193.35,193.34,15.88172171]
[1760356470320,10.1740666,193.37,193.34,5.0052465]
[1760356470611,0.7,193.36,193.35,5.17196793]
[1760356470907,10.1740666,193.37,193.35,5.41085276]
[1760356471104,10.1740666,193.37,193.36,5.0052465]
[1760356471405,10.1740666,193.37,193.36,16.55172171]
[1760356471708,0.1,193.38,193.36,0.67]
[1760356471898,0.1,193.38,193.37,0.23877835]
[1760356472102,0.1,193.38,193.37,15.88172171]
[1760356472284,0.1,193.45,193.42,10.87647521]
[1760356472483,9.42,193.62,193.48,20.8]
[1760356472681,0.6456278,193.61,193.52,5.0052465]
[1760356472895,0.7,193.6,193.54,5.0052465]
[1760356473094,0.6456278,193.61,193.56,5.0052465]
[1760356473294,0.7,193.61,193.58,5.0052465]
[1760356473507,0.7,193.6,193.55,0.23746708]
[1760356474007,0.7,193.6,193.56,5.0052465]
[1760356474223,0.64556112,193.63,193.54,0.23746708]
[1760356474411,0.7,193.62,193.56,5.0052465]
[1760356474594,0.7,193.61,193.56,5.0052465]
[1760356474793,0.7,193.6,193.56,5.0052465]
[1760356474998,0.7,193.6,193.56,5.24264686]
[1760356475193,0.7,193.62,193.56,10.40896745]
[1760356475393,0.7,193.62,193.58,5.0052465]
[1760356475801,0.64552778,193.64,193.56,6.07372095]
[1760356476001,1.34552778,193.64,193.56,6.07372095]
[1760356476194,5.80979567,193.64,193.58,5.0052465]
[1760356476397,0.7,193.63,193.58,5.0052465]
[1760356476583,0.7,193.62,193.55,0.23740036]
[1760356476788,0.7,193.62,193.55,5.24264686]
[1760356476983,0.10881468,193.56,193.54,0.23745899]
[1760356477410,0.10881468,193.56,193.55,5.0052465]
[1760356477590,0.10881468,193.56,193.54,5.24270549]
[1760356478094,0.80881468,193.56,193.54,5.24270549]
[1760356479106,0.10881468,193.56,193.54,5.24270549]
[1760356479297,0.80881468,193.56,193.54,5.24270549]
[1760356480292,0.10881468,193.56,193.54,0.23745899]
[1760356480516,0.7,193.55,193.48,10.87647521]
[1760356480723,0.7,193.55,193.5,5.0052465]
[1760356480908,0.10881468,193.56,193.52,5.0052465]
[1760356481114,0.7,193.55,193.52,5.0052465]
[1760356481421,0.7,193.55,193.51,5.0052465]
[1760356481619,0.10881468,193.56,193.52,5.24296827]
[1760356481824,0.10881468,193.56,193.53,0.67]
[1760356481995,0.10881468,193.56,193.55,5.0052465]
[1760356482398,0.10881468,193.56,193.53,5.0052465]
[1760356482707,0.10881468,193.56,193.54,0.23756105]
[1760356483016,0.81881468,193.56,193.53,0.23758828]
[1760356483215,0.10881468,193.56,193.53,0.23758828]
[1760356483434,0.10881468,193.56,193.53,0.95758828]
[1760356483594,0.10881468,193.56,193.53,0.23758828]
[1760356485202,0.10881468,193.56,193.52,5.1674085]
[1760356485397,0.10881468,193.56,193.55,31.67647521]
[1760356485911,0.10881468,193.56,193.52,20.8]
[1760356486100,0.10881468,193.56,193.53,10.87647521]
[1760356486707,0.81881468,193.56,193.53,10.87647521]
[1760356486909,0.10881468,193.56,193.52,20.8]
[1760356487236,4.98602558,193.54,193.46,10.87647521]
[1760356487530,0.7,193.55,193.48,10.87647521]
[1760356487820,0.7,193.55,193.49,0.23784035]
[1760356488028,5.68602558,193.55,193.49,0.23784035]
[1760356488401,4.98602558,193.53,193.49,0.23784035]
[1760356488698,4.98602558,193.51,193.45,16.2833872]
[1760356489209,10.15376866,193.51,193.45,11.1143428]
[1760356489594,5.16774308,193.51,193.45,11.1143428]
[1760356489797,5.86746067,193.52,193.45,16.28357226]
[1760356490008,0.7,193.51,193.45,16.28357226]
[1760356490422,1.34596144,193.51,193.44,11.11465391]
[1760356490604,5.16822574,193.49,193.4,0.2381787]
[1760356490807,5.68602558,193.48,193.4,11.11465391]
[1760356491201,0.7,193.48,193.42,10.87647521]
[1760356491404,0.7,193.52,193.44,10.87647521]
[1760356491626,1.34592806,193.52,193.45,0.23808023]
[1760356492129,1.34592806,193.52,193.45,0.94808023]
[1760356492293,1.34586132,193.54,193.46,11.58647521]
[1760356492496,1.45460926,193.56,193.48,31.67647521]
[1760356492719,1.45460926,193.56,193.5,5.16795865]
[1760356493029,1.45460926,193.56,193.51,0.23716093]
[1760356493333,0.10881468,193.56,193.53,10.87647521]
[1760356493626,0.10881468,193.56,193.54,0.23764274]
[1760356493800,0.10881468,193.56,193.52,11.11411795]
[1760356494110,0.10881468,193.56,193.52,11.82411795]
[1760356494311,0.10881468,193.56,193.53,0.71]
[1760356494511,0.10881468,193.56,193.54,0.23761551]
[1760356494899,0.10881468,193.56,193.55,11.58647521]
[1760356495507,0.10881468,193.56,193.54,0.23761551]
[1760356495713,0.10881468,193.56,193.53,11.11409072]
[1760356495938,0.10881468,193.56,193.53,11.82409072]
[1760356496302,0.10881468,193.56,193.53,16.99123976]
[1760356496502,0.10881468,193.56,193.53,0.23761551]
[1760356496742,0.10881468,193.56,193.52,16.28140025]
[1760356497114,0.10072583,193.53,193.52,16.28140025]
[1760356497620,0.10072583,193.53,193.52,0.23764007]
[1760356498005,0.10072583,193.53,193.52,6.11506462]
[1760356498208,0.10072583,193.53,193.52,16.99153983]
[1760356498419,0.10072583,193.53,193.52,37.79153983]
[1760356498925,0.09448171,193.54,193.53,10.87647521]
[1760356499110,0.09730914,193.55,193.53,11.58647521]
[1760356499322,0.09730914,193.55,193.54,11.82411795]
[1760356499508,0.79339681,193.62,193.54,11.82411795]
[1760356499509,0.09339681,193.62,193.57,31.67647521]
[1760356499715,0.09339681,193.62,193.57,31.91389053]
[1760356500032,0.09339681,193.62,193.57,32.62389053]
[1760356500325,0.09339681,193.62,193.59,10.87647521]
[1760356500498,0.09339681,193.62,193.61,31.67647521]
[1760356500704,0.7,193.72,193.67,10.87647521]
[1760356500904,12.90217663,193.77,193.67,11.58647521]
[1760356500905,5.68602558,193.74,193.67,11.58647521]
[1760356501137,1.34519459,193.74,193.68,0.23657297]
[1760356501436,6.50698074,193.74,193.65,0.23657297]
[1760356501740,4.98602558,193.72,193.65,6.11050091]
[1760356502027,0.7,193.71,193.65,5.40051258]
[1760356502200,5.68602558,193.7,193.63,31.67647521]
[1760356502404,5.68602558,193.7,193.64,0.23686402]
[1760356502626,5.86276368,193.7,193.64,0.23686402]
[1760356502809,4.98602558,193.68,193.63,0.23686402]
[1760356503007,4.98602558,193.65,193.57,10.87647521]
[1760356503227,0.7,193.64,193.57,11.11377342]
[1760356503407,5.68602558,193.63,193.54,10.87647521]
[1760356503603,5.68602558,193.63,193.55,0.23743443]
[1760356503808,0.7,193.63,193.55,0.23743443]
[1760356504005,0.64516129,193.75,193.57,10.87647521]
[1760356504228,4.98602558,193.73,193.61,10.87647521]
[1760356504422,4.98602558,193.69,193.62,0.23683683]
[1760356504731,4.98602558,193.68,193.62,0.23683683]
[1760356504907,4.98602558,193.67,193.6,0.23694572]
[1760356505107,5.68602558,193.67,193.6,5.40219775]
[1760356505338,1.34546111,193.66,193.58,0.23705187]
[1760356505631,0.64546111,193.66,193.58,0.71]
[1760356505828,0.7,193.66,193.59,0.23714577]
[1760356506505,5.68602558,193.66,193.59,0.23714577]
[1760356506701,5.68602558,193.66,193.59,5.40265575]
[1760356506926,0.7,193.65,193.59,5.40265575]
[1760356507310,5.68602558,193.65,193.59,5.40265575]
[1760356507527,6.33155336,193.64,193.56,5.16612025]
[1760356507728,4.98602558,193.62,193.56,5.16612025]
[1760356507907,4.98602558,193.6,193.51,12.91878891]
[1760356508118,4.98602558,193.6,193.52,5.40504695]
[1760356508343,6.33172008,193.59,193.52,5.40504695]
[1760356508545,0.7,193.58,193.52,5.16742455]
[1760356508755,0.7,193.58,193.51,5.16761278]
[1760356508932,5.68602558,193.58,193.51,5.16761278]
[1760356509243,0.7,193.57,193.51,5.16761278]
[1760356509943,0.7,193.56,193.46,0.71]
[1760356510253,5.68602558,193.56,193.47,16.28315197]
[1760356510424,4.98602558,193.56,193.47,16.28315197]
[1760356510615,4.98602558,193.54,193.47,16.04523522]
[1760356510817,1.34589469,193.53,193.43,10.87647521]
[1760356511018,0.7,193.52,193.43,11.11462927]
[1760356511222,5.68602558,193.52,193.43,11.11462927]
[1760356511429,5.68602558,193.52,193.43,11.82462927]
[1760356511824,5.68602558,193.52,193.43,29.2090269]
[1760356512026,5.68602558,193.52,193.44,0.71]
[1760356512227,0.7,193.52,193.45,0.23808023]
[1760356512729,4.98602558,193.49,193.41,10.87647521]
[1760356512933,0.66,193.5,193.41,11.8347928]
[1760356513143,5.63192027,193.53,193.42,0.72]
[1760356513322,45.8275014,193.6,193.43,0.2381321]
[1760356513323,0.66,193.54,193.43,0.2381321]
[1760356513518,4.98602558,193.53,193.44,21.52]
[1760356513852,0.66,193.52,193.45,0.23805299]
[1760356514356,0.66,193.56,193.51,4.98729055]
[1760356514523,0.66,193.55,193.48,0.23774368]
[1760356514717,0.64572786,193.58,193.54,4.98729055]
[1760356514921,0.66,193.62,193.57,4.98729055]
[1760356515142,1.3056278,193.61,193.54,4.98729055]
[1760356515321,1.3056278,193.61,193.54,7.27411367]
[1760356515723,7.93411367,193.6,193.53,0.23752154]
[1760356515923,7.27411367,193.57,193.49,7.27411367]
[1760356516146,0.66,193.6,193.5,7.51188456]
[1760356516147,0.66,193.56,193.5,7.51188456]
[1760356516325,0.66,193.59,193.5,0.95777089]
[1760356516530,8.57984153,193.58,193.5,0.23777089]
[1760356516726,12.44047035,193.56,193.49,12.44217463]
[1760356516931,0.66,193.55,193.49,12.44217463]
[1760356517144,7.37295905,193.5,193.42,0.23783771]
[1760356517328,7.37295905,193.5,193.3,10.87647521]
[1760356517329,1.30602821,193.49,193.38,0.72]
[1760356517646,8.58014188,193.49,193.41,7.27411367]
[1760356517852,1.30602821,193.49,193.41,7.27411367]
[1760356518057,0.66,193.49,193.44,7.27411367]
[1760356518254,0.09884538,193.5,193.47,7.27411367]
[1760356518448,0.09884538,193.5,193.48,7.27411367]
[1760356518948,0.09884538,193.5,193.46,5.16881889]
[1760356519148,0.75884538,193.5,193.45,0.23816197]
[1760356519459,7.27411367,193.48,193.4,7.27411367]
[1760356519662,1.306095,193.47,193.4,7.27411367]
[1760356520439,1.306095,193.47,193.41,7.27411367]
[1760356520640,1.306095,193.47,193.39,0.23837212]
[1760356520843,0.66,193.47,193.4,7.27411367]
[1760356521031,1.306095,193.47,193.41,7.27411367]
[1760356521235,6.47496109,193.47,193.4,7.27411367]
[1760356521533,0.646095,193.47,193.43,7.27411367]
[1760356521741,8.01895388,193.5,193.43,7.27411367]
[1760356522036,0.66,193.49,193.44,7.27411367]
[1760356522643,0.74484021,193.5,193.41,0.95834747]
[1760356522843,0.66,193.48,193.41,0.23834747]
[1760356523143,0.09884538,193.5,193.44,20.8]
[1760356523330,0.09884538,193.5,193.45,7.27411367]
[1760356523528,0.09884538,193.5,193.46,7.27411367]
[1760356524147,0.09884538,193.5,193.46,0.72]
[1760356524449,0.09884538,193.5,193.47,7.27411367]
[1760356524651,0.09884538,193.5,193.49,7.27411367]
[1760356524854,0.09884538,193.5,193.49,12.44233941]
[1760356525051,0.09884538,193.5,193.48,5.16846652]
[1760356526437,0.09884538,193.5,193.49,7.27411367]
[1760356526632,0.09884538,193.5,193.49,8.23209021]
[1760356526937,0.09884538,193.5,193.48,25.96846652]
[1760356527139,0.09884538,193.5,193.49,7.27411367]
[1760356527458,0.09884538,193.5,193.49,8.23209021]
[1760356527958,0.09884538,193.5,193.49,7.51209021]
[1760356528555,0.09884538,193.5,193.49,13.40031595]
[1760356528953,0.09884538,193.5,193.49,5.40620228]
[1760356529264,0.09884538,193.5,193.49,12.68031595]
[1760356529430,0.09884538,193.5,193.49,13.40031595]
[1760356530260,0.09884538,193.5,193.49,12.68031595]
[1760356531346,1e-08,193.5,193.49,13.40031595]
[1760356533446,0.10257599,193.52,193.51,31.67647521]
[1760356533650,0.10257599,193.52,193.51,38.95058888]
[1760356533963,0.10257599,193.52,193.51,39.90840464]
[1760356534659,0.10257599,193.52,193.51,21.03781576]
[1760356534862,0.10257599,193.52,193.51,28.31192943]
[1760356535049,0.10257599,193.52,193.51,29.03192943]
[1760356535249,0.10257599,193.52,193.51,34.19962102]
[1760356535946,0.10257599,193.52,193.51,12.67962102]
[1760356537257,0.21292416,193.52,193.51,13.39962102]
[1760356537561,0.11034817,193.52,193.51,13.39962102]
[1760356537753,0.11034817,193.52,193.51,5.40550735]
[1760356537950,0.11034817,193.52,193.51,12.67962102]
[1760356538361,0.11183113,193.53,193.51,45.07609623]
[1760356538564,0.11183113,193.53,193.52,11.59647521]
[1760356538739,0.09815565,193.54,193.52,11.59647521]
[1760356538939,0.09815565,193.54,193.53,19.10829837]
[1760356539359,0.09815565,193.54,193.53,24.27545591]
[1760356543144,0.11334875,193.55,193.54,10.87647521]
[1760356543368,0.11334875,193.55,193.54,16.04336577]
[1760356543666,0.11334875,193.55,193.54,23.31747944]
[1760356545672,0.11334875,193.55,193.54,24.03747944]
[1760356545874,0.11334875,193.55,193.54,23.31747944]
[1760356546077,0.11334875,193.55,193.54,12.44100423]
[1760356546456,0.83334875,193.55,193.51,5.16769159]
[1760356546797,0.72,193.54,193.51,12.44180526]
[1760356546954,0.72,193.53,193.51,12.44180526]
[1760356547154,0.72,193.52,193.51,12.44180526]
[1760356547460,0.72,193.52,193.49,20.8]
[1760356547679,0.72,193.51,193.49,20.8]
[1760356547985,0.72,193.5,193.47,0.23782805]
[1760356548157,0.72,193.5,193.45,7.27411367]
[1760356548486,0.72,193.49,193.45,7.27411367]
[1760356548683,0.72,193.48,193.44,0.23817165]
[1760356548979,0.72,193.47,193.46,7.27411367]
[1760356549145,5.9258164,193.55,193.46,7.27411367]
[1760356549351,0.64589469,193.53,193.47,0.23791942]
[1760356549550,0.72,193.52,193.47,7.27411367]
[1760356549783,1.36596144,193.51,193.45,7.27411367]
[1760356549960,0.72,193.5,193.43,12.44378098]
[1760356550169,0.72,193.49,193.45,7.27411367]
[1760356550366,0.72,193.48,193.47,7.27411367]
[1760356551265,0.72,193.48,193.46,7.27411367]
[1760356551446,0.72,193.47,193.46,7.27411367]
[1760356552258,5.81365681,193.51,193.46,12.44314085]
[1760356552458,0.72,193.5,193.47,7.27411367]
[1760356552660,0.72,193.52,193.49,7.27411367]
[1760356552874,0.72,193.51,193.49,7.27411367]
[1760356553577,0.72,193.51,193.5,7.27411367]
[1760356553973,1.4791767,193.55,193.5,7.27411367]
[1760356554287,0.72,193.54,193.51,7.27411367]
[1760356554458,0.72,193.53,193.51,7.27411367]
[1760356554863,0.72,193.52,193.5,7.27411367]
[1760356555061,0.72,193.51,193.49,7.27411367]
[1760356555458,0.72,193.5,193.48,7.27411367]
[1760356555661,0.72,193.52,193.48,12.44239409]
[1760356555861,0.64589469,193.53,193.49,7.27411367]
[1760356556058,0.72,193.51,193.48,7.27411367]
[1760356556268,0.72,193.5,193.48,7.27411367]
[1760356556466,0.72,193.49,193.45,7.27411367]
[1760356556684,0.72,193.48,193.45,7.27411367]
[1760356556974,7.27411367,193.52,193.44,0.23801345]
[1760356557183,0.09574704,193.46,193.44,7.27411367]
[1760356557366,0.81574704,193.46,193.44,12.44365598]
[1760356557563,0.72,193.45,193.43,12.44392854]
[1760356557767,0.72,193.45,193.43,5.16981487]
[1760356557971,0.72,193.45,193.43,12.44392854]
[1760356558357,0.09574704,193.46,193.43,7.27411367]
[1760356558576,0.81574704,193.46,193.43,7.27411367]
[1760356559189,0.81574704,193.46,193.43,12.44387692]
[1760356559367,0.09574704,193.46,193.44,7.27411367]
[1760356559556,0.09574704,193.46,193.44,12.44342665]
[1760356560083,0.09574704,193.46,193.45,8.23235737]
[1760356560484,0.09574704,193.46,193.45,19.10883258]
[1760356560686,0.11153037,193.48,193.46,18.15058888]
[1760356560899,0.10149044,193.5,193.49,20.8]
[1760356561203,0.10149044,193.5,193.49,28.31206297]
[1760356561383,0.82149044,193.5,193.4,0.23797391]
[1760356561696,7.27411367,193.49,193.44,7.27411367]
[1760356561879,0.72,193.48,193.44,7.27411367]
[1760356562083,0.72,193.47,193.44,7.27411367]
[1760356562695,0.72,193.46,193.42,7.51233718]
[1760356563079,0.72,193.46,193.43,7.27411367]
[1760356563281,0.72,193.48,193.43,7.27411367]
[1760356563505,0.72,193.47,193.43,7.27411367]
[1760356563809,7.99411367,193.46,193.4,7.27411367]
[1760356564102,0.64616179,193.45,193.4,7.27411367]
[1760356564342,0.64616179,193.45,193.38,5.40955983]
[1760356564343,0.72,193.44,193.38,5.40955983]
[1760356564616,0.72,193.43,193.35,33.96801521]
[1760356564920,1.3662286,193.43,193.37,7.27411367]
[1760356565109,1.3662286,193.43,193.38,7.27411367]
[1760356565410,1.3662286,193.43,193.37,79.43856289]
[1760356565411,0.72,193.43,193.37,79.43856289]
[1760356565582,0.72,193.42,193.38,7.27411367]
[1760356565786,0.72,193.42,193.38,12.44522756]
[1760356565978,0.6462286,193.43,193.39,7.27411367]
[1760356566288,0.72,193.42,193.39,7.27411367]
[1760356566696,0.72,193.42,193.38,7.27411367]
[1760356566900,0.72,193.42,193.39,7.27411367]
[1760356567683,0.72,193.41,193.36,5.17166441]
[1760356567880,12.44438128,193.42,193.36,84.37166441]
[1760356568120,7.27411367,193.39,193.32,79.4]
[1760356568323,0.72,193.38,193.32,86.67411367]
[1760356568618,1.36629543,193.41,193.34,7.27411367]
[1760356568784,8.6404091,193.41,193.35,7.27411367]
[1760356568979,7.27411367,193.39,193.34,7.27411367]
[1760356569201,7.27411367,193.39,193.32,97.50466821]
[1760356569202,1.36639569,193.38,193.33,7.27411367]
[1760356569408,1.36642912,193.37,193.32,86.67411367]
[1760356569605,7.27411367,193.35,193.32,0.2]
[1760356569902,1.36652943,193.34,193.32,0.2]
[1760356570500,7.27411367,193.4,193.33,7.99411367]
[1760356570699,1.36629543,193.41,193.37,7.27411367]
[1760356570878,0.64629543,193.41,193.37,7.27411367]
[1760356571078,0.72,193.45,193.4,7.27411367]
[1760356571297,1.3661952,193.44,193.4,7.27411367]
[1760356571486,0.72,193.44,193.41,7.27411367]
[1760356571677,0.72,193.44,193.41,12.44430563]
[1760356572682,7.99411367,193.43,193.37,33.24551826]
[1760356572905,7.92037569,193.42,193.37,25.97140459]
[1760356573203,8.64037569,193.42,193.36,12.44569879]
[1760356573404,7.99411367,193.41,193.35,12.44607007]
[1760356573611,7.27411367,193.39,193.33,28.07411367]
[1760356573781,0.64639569,193.38,193.33,25.97246829]
[1760356573981,7.92050936,193.38,193.33,25.97246829]
[1760356574182,8.64050936,193.38,193.33,25.97246829]
[1760356574384,7.99411367,193.37,193.32,0.2]
[1760356574909,7.27411367,193.36,193.32,0.2]
[1760356575110,7.27411367,193.36,193.32,5.37267253]
[1760356575406,5.71751274,193.36,193.32,5.37267253]
[1760356575623,5.71751274,193.36,193.32,0.2]
[1760356576296,0.72,193.35,193.32,0.2]
[1760356576497,10.16926879,193.36,193.32,0.2]
[1760356576704,0.72,193.34,193.32,0.2]
[1760356577009,5.89175605,193.36,193.32,0.2]
[1760356577185,0.10510199,193.33,193.32,0.2]
[1760356577387,5.82261473,193.33,193.32,0.2]
[1760356578008,10.9951177,193.33,193.31,0.2]
[1760356578196,6.36410905,193.32,193.31,0.2]
[1760356578399,1.36659631,193.32,193.31,0.2]
[1760356578708,6.36410905,193.32,193.31,0.2]
[1760356579898,11.53687958,193.32,193.31,0.2]
[1760356580890,6.53936684,193.32,193.31,0.2]
[1760356581212,1.36659631,193.32,193.31,0.2]
[1760356581407,6.36410905,193.32,193.31,0.2]
[1760356582325,10.81687958,193.32,193.31,0.2]
[1760356582607,11.53687958,193.32,193.31,0.2]
[1760356582787,0.64659631,193.32,193.31,0.2]
[1760356582990,5.71751274,193.32,193.31,0.2]
[1760356583190,0.72,193.32,193.31,0.2]
[1760356583392,5.71751274,193.32,193.31,0.2]
[1760356583993,10.89028327,193.32,193.31,0.2]
[1760356584727,10.17028327,193.32,193.31,0.2]
[1760356585188,10.89028327,193.32,193.31,0.2]
[1760356585808,5.89277053,193.32,193.31,0.2]
[1760356586012,10.89028327,193.32,193.31,0.2]
[1760356588001,41.09028327,193.32,193.31,0.2]
[1760356589100,31.69028327,193.32,193.31,0.2]
[1760356589291,41.09028327,193.32,193.31,0.2]
[1760356590914,31.69028327,193.32,193.31,0.2]
[1760356591219,41.09028327,193.32,193.31,0.2]
[1760356591801,31.69028327,193.32,193.31,0.2]
[1760356592218,41.09028327,193.32,193.31,0.2]
[1760356592420,31.69028327,193.32,193.31,0.2]
[1760356592712,31.16675848,193.32,193.31,1e-08]
[1760356592918,60.56253748,193.32,193.26,0.2]
[1760356593100,15.87398795,193.27,193.26,1e-08]
[1760356593494,17.19075154,193.27,193.26,1e-08]
[1760356594130,26.59075154,193.27,193.26,1e-08]
[1760356594308,29.29453021,193.27,193.26,1e-08]
[1760356594899,34.46863896,193.27,193.26,1e-08]
[1760356595809,14.19216375,193.27,193.26,1e-08]
[1760356596009,23.59216375,193.27,193.26,1e-08]
[1760356596409,22.92216375,193.27,193.26,1e-08]
[1760356596926,23.59216375,193.27,193.26,1e-08]
[1760356597121,23.69031002,193.27,193.26,1e-08]
[1760356598328,0.74490986,193.27,193.26,1e-08]
[1760356598532,5.91901861,193.27,193.26,1e-08]
[1760356599323,5.91901861,193.27,193.26,0.67000001]
[1760356599521,5.91901861,193.27,193.26,1e-08]
[1760356600528,11.58653135,193.27,193.26,1e-08]
[1760356600732,20.98653135,193.27,193.26,1e-08]
[1760356601033,20.31653135,193.27,193.26,1e-08]
[1760356601406,10.91653135,193.27,193.26,1e-08]
[1760356601606,0.74490986,193.27,193.26,1e-08]
[1760356601805,0.09814627,193.27,193.26,0.67000001]
[1760356603633,0.09814627,193.27,193.26,5.66751275]
[1760356604130,0.09814627,193.27,193.26,0.67000001]
[1760356604316,0.09814627,193.27,193.26,1e-08]
[1760356604639,5.27225502,193.27,193.26,1e-08]
[1760356604826,0.09814627,193.27,193.26,1e-08]
[1760356605542,10.92976776,193.27,193.26,1e-08]
[1760356605727,5.93225502,193.27,193.26,1e-08]
[1760356605914,10.92976776,193.27,193.26,1e-08]
[1760356606321,20.32976776,193.27,193.26,1e-08]
[1760356606617,10.92976776,193.27,193.26,1e-08]
[1760356607413,20.32976776,193.27,193.26,1e-08]
[1760356608522,10.92976776,193.27,193.26,1e-08]
[1760356608916,20.32976776,193.27,193.26,1e-08]
[1760356609421,10.92976776,193.27,193.26,1e-08]
[1760356609620,20.32976776,193.27,193.26,1e-08]
[1760356610426,10.92976776,193.27,193.26,1e-08]
[1760356610633,20.32976776,193.27,193.26,1e-08]
[1760356611532,5.27225502,193.27,193.26,1e-08]
[1760356612044,10.26976776,193.27,193.26,1e-08]
[1760356612620,10.91976776,193.27,193.26,1e-08]
[1760356613027,20.31976776,193.27,193.26,1e-08]
[1760356613425,10.91976776,193.27,193.26,1e-08]
[1760356613714,20.31976776,193.27,193.26,1e-08]
[1760356614622,10.91976776,193.27,193.26,1e-08]
[1760356614843,20.31976776,193.27,193.26,1e-08]
[1760356615722,10.26976776,193.27,193.26,1e-08]
[1760356617144,10.26976776,193.27,193.25,0.2]
[1760356617145,10.87647521,193.26,193.25,1e-08]
[1760356617348,0.64679706,193.26,193.25,1e-08]
[1760356617551,6.2943098,193.26,193.25,1e-08]
[1760356617933,15.6943098,193.26,193.25,1e-08]
[1760356618134,10.69679706,193.26,193.25,1e-08]
[1760356618442,15.6943098,193.26,193.25,1e-08]
[1760356618951,20.86868628,193.26,193.25,1e-08]
[1760356619149,11.46868628,193.26,193.25,1e-08]
[1760356619365,5.82117354,193.26,193.25,1e-08]